Cogmind - Beta 13 X2 --- EXPLORER MODE // 2024.01.28 @ 12:55:06 // Winter2019/RPGLIKE Player: Hermelin Result: Destroyed by 8R-AWN with 8R-AWN's Boregun Performance ------------- Evolutions (0) 0 Regions Visited (3) 600 Robots Destroyed (18) 90 Value Destroyed (453) 453 Prototype IDs (35) 700 Alien Tech Used (0) 0 Bonus (-192) -192 TOTAL SCORE: 1651 Bonus ------- Aligned with FarCom 300 Friendly Fire -492 Cogmind --------- Core Integrity 0/650 Matter 300/300 Energy 100/100 System Corruption 1% Temperature Cool (0) Movement Treading (160) Location -10/Exiles Parts ------- > --- POWER (1) -------- (None) > --- PROPULSION (2) --- Light Treads Wheel > --- UTILITY (6) ------ Improved Terrain Scanner Salvage Targeting Computer Salvage Targeting Computer Salvage Targeting Computer > --- WEAPON (2) ------- Light Assault Rifle Grenade Launcher > --- INVENTORY (2) ---- Protomatter-23 Light Fission Core Peak State ------------ > --- POWER ------------ Backup Power I > --- PROPULSION ------- Light Treads Wheel > --- UTILITY ---------- Improved Terrain Scanner Salvage Targeting Computer Salvage Targeting Computer Salvage Targeting Computer Salvage Targeting Computer Medium Armor Plating > --- WEAPON ----------- Light Assault Rifle Grenade Launcher > --- INVENTORY -------- Protomatter Datajack [Rating: 18] Favorites ----------- Power Light Ion Engine Engine Light Ion Engine Propulsion Light Treads Treads Light Treads Wheel Wheel Utility Salvage Targeting Computer Device Improved Terrain Scanner Processor Salvage Targeting Computer Protection Light Armor Plating Weapon EM Pulse Gun Energy Gun EM Pulse Gun Ballistic Gun Light Assault Rifle Launcher Grenade Launcher Special Melee Weapon Datajack Build | -11 -10 -10 -10 ------- Run | Yrd Mat Min Exi Slots Evolved 7 | 6 1 . . Power . | . . . . Propulsion 1 | 1 . . . Utility 5 | 4 1 . . Weapon 1 | 1 . . . Parts Attached 23 | 10 11 . 2 Power 1 | 1 . . . Engine 1 | 1 . . . Core . | . . . . Reactor . | . . . . Propulsion 3 | 2 1 . . Treads 2 | 2 . . . Leg . | . . . . Wheel 1 | . 1 . . Hover . | . . . . Flight . | . . . . Utility 13 | 5 8 . . Device 3 | 2 1 . . Storage . | . . . . Processor 5 | 1 4 . . Hackware . | . . . . Protection 5 | 2 3 . . Artifact . | . . . . Weapon 6 | 2 2 . 2 Energy Gun 2 | 2 . . . Energy Cannon . | . . . . Ballistic Gun 1 | . 1 . . Ballistic Cannon . | . . . . Launcher 2 | . 1 . 1 Special Weapon . | . . . . Impact Weapon . | . . . . Slashing Weapon . | . . . . Piercing Weapon . | . . . . Special Melee Weapon 1 | . . . 1 Unidentified Prototypes . | . . . . Parts Lost 3 | . . . 3 Power 1 | . . . 1 Propulsion . | . . . . Utility 2 | . . . 2 Weapon . | . . . . Highest Loss Streak 1 | . . . 1 To Critical Strikes 1 | . . . 1 Average Slot Usage (%) 98 | . 99 100 97 Engine 9 | . 9 9 8 Treads 9 | . 10 9 9 Wheel 8 | . 8 9 9 Device 11 | . 13 9 9 Processor 25 | . 24 27 27 Protection 14 | . 13 18 15 Energy Gun 3 | . 6 . . Ballistic Gun 8 | . 7 9 9 Launcher 5 | . 5 9 5 Special Melee Weapon 1 | . . . 3 Naked Turns . | . . . . Heaviest Build 20 | 13 20 20 20 Greatest Support 40 | 40 40 10 10 Greatest Overweight (x) 1 | . 1 1 1 Average Overweight (x) . | . . 1 1 Largest Inventory Capacity 2 | 2 2 2 2 Average Capacity 2 | 2 2 2 2 Most Carried 2 | 2 2 2 2 Average Carried 1 | 1 1 2 1 Final Capacity 2 | 2 2 2 2 Final Carried 2 | 2 2 2 2 Class Distribution -------------------- 59% | Hacker-Skirmisher 40% | Hacker-Mutant Dominant Class ---------------- Hacker-Mutant | -10/Materials Hacker-Mutant | -10/Mines Hacker-Mutant | -10/Exiles Resources | -11 -10 -10 -10 ----------- Run | Yrd Mat Min Exi Matter Collected 643 | 300 158 . 185 Remotely . | . . . . Salvage Created 672 | 130 538 . 4 Parts 57 | 5 52 . . Haulers Intercepted 2 | . 2 . . Recyclers Shooed 1 | 1 . . . Parts Field Recycled . | . . . . Retrieved Matter . | . . . . Parts Self-Destructed . | . . . . Prevented . | . . . . Kills | -11 -10 -10 -10 ------- Run | Yrd Mat Min Exi Combat Hostiles Destroyed 19 | 2 13 . 4 Guns 16 | 2 13 . 1 AOE 3 | . . . 3 Classes Destroyed 7 | 3 4 . . Tunneler 1 | 1 . . . Hauler 2 | . 2 . . Recycler 1 | 1 . . . Watcher 1 | . 1 . . Swarmer 2 | . 2 . . Grunt 11 | . 11 . . Assembled 9 | 2 . . 7 Best Kill Streak 4 | 2 3 . 4 Combat Bots Only 4 | 1 3 . 4 Max Kills in Single Turn 3 | 1 1 . 3 Gunslinging . | . . . . Exploded 2 | . . . 2 Melee . | . . . . Uniques/NPCs Destroyed . | . . . . Combat | -11 -10 -10 -10 -------- Run | Yrd Mat Min Exi Hostile Shots Fired 168 | 4 56 6 102 Missed 32 | 1 14 2 15 Damage Taken 1423 | 45 307 33 1038 Core 879 | 22 179 21 657 Absorbed by Shields . | . . . . Redirected to Core 738 | 22 146 10 560 Redirected to Shielding 16 | 4 12 . . Ignored by Resistances 862 | 26 199 20 617 Regen/Repaired (Parts) 30 | . 30 . . Core Remaining (%) 96 | 96 . . . Volleys Fired 150 | 8 58 3 81 Largest 2 | 2 2 1 1 Hottest 90 | 90 90 20 30 Shots Fired 190 | 16 90 3 81 Gun 185 | 16 90 3 76 Cannon . | . . . . Launcher 5 | . . . 5 Special . | . . . . Kinetic 127 | . 48 3 76 Thermal 18 | 8 10 . . Explosive 5 | . . . 5 Electromagnetic 40 | 8 32 . . Robot Hit Streak 32 | 11 25 17 32 Robot Miss Streak 2 | 1 2 . 1 Penetration Max . | . . . . Secondary Targets . | . . . . Shots Hit Robots 169 | 13 78 3 75 Core Hits 63 | 6 33 . 24 Critical Kills . | . . . . Critical Parts Destroyed . | . . . . Critical Strikes 3 | . 2 . 1 Burn 2 | . 2 . . Destroy 1 | . . . 1 Melee Attacks 3 | . . . 3 Impact . | . . . . Slashing . | . . . . Piercing . | . . . . Sneak Attacks 3 | . . . 3 Combat Hostiles . | . . . . Follow-up Attacks . | . . . . Damage Inflicted 1999 | 198 850 27 924 Guns 1594 | 159 850 27 558 Cannons . | . . . . Explosions 405 | 39 . . 366 Melee . | . . . . Ramming . | . . . . Kinetic 907 | . 322 27 558 Thermal 244 | 114 130 . . Explosive 366 | . . . 366 Electromagnetic 482 | 84 398 . . Impact . | . . . . Slashing . | . . . . Piercing . | . . . . Highest Corruption 1 | . 1 1 1 Average Corruption 1 | . 1 1 1 Corruption Purged . | . . . . Corruption Blocked . | . . . . Effects 4 | . . . 4 Message Errors 1 | . . . 1 Heat Flow Errors 1 | . . . 1 Data Loss (minor) 1 | . . . 1 Data Loss (major) 1 | . . . 1 Overload Shots . | . . . . Overflow Damage 5 | 2 . . 3 Projectiles . | . . . . Explosions 5 | 2 . . 3 Melee . | . . . . Knockbacks . | . . . . Impact . | . . . . Kinetic . | . . . . Secondary . | . . . . Self-Inflicted Damage 25 | 25 . . . Shots 1 | 1 . . . Rammed . | . . . . Targets Rammed . | . . . . Kicked . | . . . . Crushed . | . . . . Highest Temperature 243 | 129 216 7 243 Average Temperature 59 | 55 53 5 122 Received Heat Transfer 276 | . 246 30 . Effects 1 | . . . 1 Energy Bleed 1 | . . . 1 Siege Activations . | . . . . Robots Corrupted . | . . . . Combat Hostiles . | . . . . Parts Fried 1 | . 1 . . Impact Corruptions . | . . . . Robots Melted . | . . . . Combat Hostiles . | . . . . Parts Melted 3 | . 3 . . Heat Transferred 840 | 322 518 . . Parts Sabotaged . | . . . . Parts Stolen . | . . . . Parts Stripped . | . . . . Power Chain Reactions 1 | 1 . . . Missiles Intercepted . | . . . . Alert | -11 -10 -10 -10 ------- Run | Yrd Mat Min Exi Peak Influence 268 | 10 268 . . Initial . | . . . . Average 38 | 1 113 . . Maximum Alert Level 1 | . 1 . . Low Security (%) 89 | 100 67 100 . Level 1 10 | . 32 . . Level 2 . | . . . . Level 3 . | . . . . Level 4 . | . . . . Level 5 . | . . . . High Security . | . . . . Max Security . | . . . . Squads Dispatched 4 | . 4 . . Investigation 4 | . 4 . . Extermination . | . . . . Reinforcement . | . . . . Assault . | . . . . Garrison . | . . . . Intercept . | . . . . Searches Triggered . | . . . . Construction Impeded . | . . . . Haulers Reinforced . | . . . . Active Scanning Responses . | . . . . Cargo Convoy Interrupts . | . . . . Stealth | -11 -10 -10 -10 --------- Run | Yrd Mat Min Exi Distress Signals . | . . . . Communications Jammed . | . . . . Distress Signals . | . . . . Times Spotted 32 | 3 21 3 5 Peak Tracking Total 7 | 1 4 7 6 Tactical Retreats 2 | 1 . 1 . Traps | -11 -10 -10 -10 ------- Run | Yrd Mat Min Exi Traps Triggered 2 | . 2 . . Indirectly . | . . . . Trap Hack Attempts . | . . . . Triggered . | . . . . Disarmed . | . . . . Reprogrammed . | . . . . Reused . | . . . . Traps Extracted . | . . . . Installed . | . . . . Triggered . | . . . . Machines | -11 -10 -10 -10 ---------- Run | Yrd Mat Min Exi Machines Disabled 2 | . . . 2 Max in Single Turn 1 | . . . 1 Machines Repaired . | . . . . Machines Dismantled . | . . . . Machines Sabotaged . | . . . . Overloaded Fab Kills . | . . . . Hacking | -11 -10 -10 -10 --------- Run | Yrd Mat Min Exi Machines Accessed 12 | . 10 . 2 Terminals 7 | . 7 . . Fabricators . | . . . . Repair Stations 1 | . 1 . . Recycling Units 2 | . 2 . . Scanalyzers . | . . . . Garrison Access . | . . . . Total Hacks 60 | . 54 . 6 Successful 45 | . 39 . 6 Failed 15 | . 15 . . Catastrophic . | . . . . Database Lockouts . | . . . . Manual 36 | . 35 . 1 Terminals 47 | . 47 . . Fabricators . | . . . . Repair Stations 3 | . 3 . . Recycling Units 4 | . 4 . . Scanalyzers . | . . . . Garrison Access . | . . . . Terminal Hacks 33 | . 27 . 6 Record 5 | . . . 5 Part Schematic 2 | . 2 . . Robot Schematic 2 | . 2 . . Robot Analysis 2 | . 2 . . Prototype ID Bank 11 | . 11 . . Level Access Points 1 | . 1 . . Branch Access Points 1 | . 1 . . Emergency Access Points 1 | . 1 . . Terminal Index 1 | . 1 . . Locate Traps 3 | . 3 . . Zone Layout 3 | . 3 . . Derelict Proto ID Bank 1 | . . . 1 Fabricator Hacks . | . . . . Repair Station Hacks 3 | . 3 . . Scan Component 1 | . 1 . . Repair 1 | . 1 . . Refit 1 | . 1 . . Recycling Unit Hacks 2 | . 2 . . Report Inventory 2 | . 2 . . Scanalyzer . | . . . . Garrison Access Hacks . | . . . . Unauthorized Hacks 7 | . 7 . . Terminals 5 | . 5 . . Track 2 | . 2 . . Botnet 2 | . 2 . . Operators 1 | . 1 . . Fabricators . | . . . . Repair Stations . | . . . . Recycling Units 2 | . 2 . . Tunnel 2 | . 2 . . Scanalyzers . | . . . . Garrison Access . | . . . . Data Cores Recovered . | . . . . Used . | . . . . Hacking Detections 8 | . 8 . . Full Trace Events 6 | . 6 . . Feedback Events . | . . . . Feedback Blocked . | . . . . Robot Schematics Acquired 2 | . 2 . . Robots Built . | . . . . Authchips . | . . . . Time . | . . . . Total Robot Build Rating . | . . . . Part Schematics Acquired 2 | . 2 . . Parts Built . | . . . . Authchips . | . . . . Time . | . . . . Total Part Build Rating . | . . . . Parts Repaired 1 | . 1 . . Time 26 | . 26 . . Parts Recycled . | . . . . Recycled Matter . | . . . . Retrieved Matter . | . . . . Retrieved Components . | . . . . Parts Scanalyzed . | . . . . Part Schematics Acquired . | . . . . Parts Damaged . | . . . . Bothacking | -11 -10 -10 -10 ------------ Run | Yrd Mat Min Exi Used RIF Installer . | . . . . Robots Hacked 3 | . . . 3 Non-combat 3 | . . . 3 Combat . | . . . . Robot Hacks Applied 3 | . . . 3 parse_system 3 | . . . 3 Relay Couplers Released . | . . . . Fabnet Peak Effective % . | . . . . Robots Rewired . | . . . . Allies Hacked . | . . . . Hacks Repelled . | . . . . Allies | -11 -10 -10 -10 -------- Run | Yrd Mat Min Exi Total Allies . | . . . . Largest Group . | . . . . Highest-Rated Group . | . . . . Highest-Rated Ally . | . . . . Total Orders . | . . . . Ally Attacks . | . . . . Total Damage . | . . . . Kills . | . . . . Allies Corrupted . | . . . . Allies Melted . | . . . . Intel | -11 -10 -10 -10 ------- Run | Yrd Mat Min Exi Robot Analysis Total 2 | . 2 . . Derelict Logs Recovered . | . . . . Drone Launches . | . . . . Drone Recoveries . | . . . . Exploration | -11 -10 -10 -10 ------------- Run | Yrd Mat Min Exi Turns Passed 3627 | 1936 973 78 640 Spaces Moved 1790 | 404 824 77 485 Core 3 | 3 . . . Treads 457 | 401 56 . . Legs . | . . . . Wheels 1330 | . 768 77 485 Hover . | . . . . Flight . | . . . . Fastest Speed 50 | 50 80 95 95 Average Speed 106 | 159 89 95 95 Slowest Speed 160 | 160 160 95 95 Overloaded Moves . | . . . . Propulsion Burnouts . | . . . . Robots Hopped . | . . . . Cave-ins Triggered . | . . . . Exploration Rate (%) 55 | 46 98 18 61 Regions Visited 3 Branch Regions 2 Pre-discovered Areas 4 | . 2 1 1 Known Exits Taken 3 | 1 1 1 . Unknown Exits Taken . | . . . . Scrap Searched . | . . . . Spaces Dug . | . . . . Terrain Destroyed 11 | . . . 11 Melee . | . . . . Projectile . | . . . . AOE 11 | . . . 11 Terrain Rammed . | . . . . Walls Destroyed . | . . . . Machines Disabled . | . . . . Actions | -11 -10 -10 -10 --------- Run | Yrd Mat Min Exi Total 3340 | 1676 986 79 599 Wait 1320 | 1253 53 . 14 Move 1787 | 403 823 76 485 Hop . | . . . . Pick Up 13 | 2 6 . 5 Fast Attach 18 | 10 8 . . Attach 3 | . 2 . 1 Detach . | . . . . Swap 2 | . 1 . 1 Drop 19 | . 14 . 5 Fire 150 | 8 58 3 81 Melee 3 | . . . 3 Ram . | . . . . Kick . | . . . . Crush . | . . . . Escape Stasis . | . . . . Rewire . | . . . . Trap . | . . . . Miscellaneous 25 | . 21 . 4 Route ------- -11/Scrapyard -10/Materials (discovered 6 exits: *Mat x3 / *Min x2 / Sub) -10/Mines -10/Exiles (discovered 1 exit: *Min) History --------- Turn | Location | Event 1 | -11/Scrapyard | Upgraded with Propulsion slot (x1) 1 | -11/Scrapyard | Upgraded with Utility slot (x4) 1 | -11/Scrapyard | Upgraded with Weapon slot (x1) 4 | -11/Scrapyard | Identified exit to Materials 4 | -11/Scrapyard | Discovered exit to Materials (range 16) 994 | -11/Scrapyard | Assembled infested the area 1937 | -11/Scrapyard | Entered Materials 1938 | -10/Materials | Build established: Hacker-Skirmisher 1942 | -10/Materials | Identified exit to Subcaves 1942 | -10/Materials | Discovered exit to Subcaves (range 13) 1952 | -10/Materials | Identified exit to Mines 1952 | -10/Materials | Discovered exit to Mines (range 16) 2005 | -10/Materials | Discovered exit to Mines (range 8) 2071 | -10/Materials | Identified exit to Materials 2071 | -10/Materials | Discovered exit to Materials (range 16) 2181 | -10/Materials | Discovered exit to Materials (range 15) 2246 | -10/Materials | Repaired Lgt. Armor Plating 2467 | -10/Materials | Build established: Hacker-Mutant 2499 | -10/Materials | Reached level 2 2499 | -10/Materials | Upgraded with Utility slot (x1) 2910 | -10/Materials | Entered Mines 2911 | -10/Mines | Learned location of Storage (-9) 2936 | -10/Mines | Deemed a non-threat by the Exiles lab entrance 2937 | -10/Mines | Identified exit to Exiles 2937 | -10/Mines | Discovered exit to Exiles (range 5) 2962 | -10/Mines | Assembled infested the area 2967 | -10/Mines | Assisted by a Guerilla fighting off Assembled 2988 | -10/Mines | Entered Exiles 3001 | -10/Exiles | Identified exit to Mines 3001 | -10/Exiles | Discovered exit to Mines (range 16) 3025 | -10/Exiles | Met 8R-AWN 3042 | -10/Exiles | Met EX-HEX 3071 | -10/Exiles | Met EX-BIN 3093 | -10/Exiles | Met EX-DEC 3098 | -10/Exiles | Learned location of Zion (-6) 3193 | -10/Exiles | Aligned with FarCom system 3194 | -10/Exiles | Given EX-Vault access code 3218 | -10/Exiles | Opened EX-Vault 3240 | -10/Exiles | Warned to stay clear of 0b10 Research branches 3483 | -10/Exiles | Attacked by the Exiles 3508 | -10/Exiles | Murdered 3 allies 3526 | -10/Exiles | Core integrity fell below 50% 3579 | -10/Exiles | Core integrity fell below 20% 3628 | -10/Exiles | Destroyed by 8R-AWN with 8R-AWN's Boregun Last Messages --------------- 03603_ Protomatter-11 decays. 03604_ Extracted 1 matter. 03606_ Penetrated by HV Slug. 03606_ HV Slug penetrates Wall. 03608_ Extracted 1 matter. 03611_ Penetrated by HV Slug. 03611_ HV Slug penetrates Wall. 03612_ Extracted 1 matter. 03615_ Penetrated by HV Slug. 03617_ Extracted 1 matter. 03619_ Penetrated by HV Slug. 03619_ Critical hit (Destroy). 03619_ Backup Power I destroyed. 03619_ Penetrated by HV Slug. 03621_ Extracted 1 matter. 03621_ The unstable cave ceiling collapses. 03622_ Extracted 1 matter. 03623_ HV Slug penetrates Wall. 03624_ Extracted 1 matter. 03628_ Penetrated by HV Slug. Map ----- +----------------------------------------------------+ | """#???##??????????????????????????????? | | """## ?"???????????????????????????????? | | """#??""???????????????????????????????? | | """##?"????????????????????????????????? | | """""?? ??????????????????????????????? | | """##??????????????????????????????????? | | "X" """""?? ??#????????????????????????????? | | """ #???????????????????????????????????? | | """""""""# ???#??????????????????????????????? | | ###########?""????#??#????????????????????????? | | #######??##??###?######?##?##?????#???#?#?#??## | | ##?###?##?######?########?####???????##????##?? | | ##?#?############################?#?????###?#?? | | ####?############################????###?????? | | #####"""" """"##################??????#??###? | | " """ """"#################?##?##?##?#?# | | "" " ############?######?####???#? | | " """#########?#?####?#??####??#?# | | a"#######################?###?? | | " "#############" ####?#?##???# | | "###########" #####?##??#?# | | " ""#########" ######?####?# | | """/ "## ##### ########???# | | ####""" ;# ### ########## | | ?####""" !;#### #""""## | | #####"""" @;## * | | ?####"" g ## * | | ####"""" #### | | #""" ""#?#"""""#### | | "" #"""###########?#### | | ##############???##?### | | ##############??###?###? | | " ##############??#####?#?# | | "" "" ""##############??###??#### | | ##""" " " "" "########??#####?#?#?#?#?#? | | ######""" """# #####?###########??#####?# | | ########""""### # #########??####?###?###?##? | | ######?######### #####?#?###?#######?###?#####?#? | | "!##??###?#############?###########?#??####?###? | | !##########################?##?##?#????#??##?## | | "#####?##################?###?##?#??????#??##?# | | ""!"####??###?#####???##?#??????#????#?????##?##?# | | ######??#?#####?##??####??#????????????????##????# | | ???#?#?#?###???#???#?#???????????????????????????? | | ?##???#####?##???????????????????????????????????? | | ##????#??#?##????????????????????????????????????? | | ##???#?##??##?#??????????????????????????????????? | | #?###?#??????????????????????????????????????????? | | ##????#????#?????????????????????????????????????? | | #???????#????????????????????????????????????????? | +----------------------------------------------------+ Best States ------------- Heat Dissipation 41 Energy Generation 10 Energy Capacity 125 Matter Stores 300 Matter Capacity 300 Sight Range 17 Terrain Scan Range 16 Terrain Scan Density 110 Armor Coverage 450 Resistance: KI 35 Resistance: TH 35 Resistance: EX 35 Resistance: EM 35 Resistance: I 35 Resistance: S 35 Resistance: P 35 Propulsion Shielding 33 Evasion (%) 44 Targeting Accuracy 5 Recoil Reduction 2 Salvage Targeting 4 Offensive Hacking 20 Item Schematics ----------------- Assault Rifle | -10/Materials | Hacked Wheel | -10/Materials | Hacked Robot Schematics ------------------ M-13 Machinist | -10/Materials | Hacked O-16 Technician | -10/Materials | Hacked Fabricated ------------ Nothing Alien Tech Used ----------------- None Achievements -------------- None Challenges ------------ None RPGLIKE | -11 -10 -10 -10 --------- Run | Yrd Mat Min Exi Levels Raised 1 | . 1 . . XP Earned 8905 | 6000 2055 500 350 XP Spent 7475 | 5750 1700 . 25 Upgrades 13 | 11 1 . 1 Propulsion Slot 1 | 1 . . . Utility Slot 5 | 4 1 . . Weapon Slot 1 | 1 . . . Core Integrity 1 | . . . 1 Heat Dissipation 1 | 1 . . . Inventory Capacity 2 | 2 . . . Sight Range 1 | 1 . . . Terrain Scan Density 1 | 1 . . . Protomatter Created 252 | . 233 . 19 Integrity Restored 373 | . 317 . 56 Core 222 | . 192 . 30 Parts 151 | . 125 . 26 Protomatter Decayed 113 | 18 75 9 11 Game ------ Seed BackupShieldBoomstick Manual? 0 Play Time 00:24:57 Cumulative 506.6 hours Start 2024.01.28 @ 12:25:52 End 2024.01.28 @ 12:55:06 Sessions 1 Manual Loads 0 Difficulty Explorer Special Mode Winter2019/RPGLIKE Game No. 197 Rogue 185 Adventurer 3 Explorer 9 Win Type - Total 9 Types 5/2/0/1/0/1/0/0/0 Lore% 82 Gallery% 91 Achievement% 80 Wizard Run 0 Options --------- ASCII 0 Keyboard 0 Movement Numpad Keybinds 0 Fullscreen 1 Font 18/SmallcapsGlow Map View 76x50 Zoom Use 0% Tactical HUD 1 Map Filters NONE Filters NONE Steam X RUN: 763a05cd-3aa6-4a46-8432-1dc8d18540d6